bitfinex-derivatives/quotes_SOLF0:USTF0_20241231
["timestamp","ask_amount","ask_price","bid_price","bid_amount"]
[1735625683067,2.6484,189.07,189.01,2.6491]
[1735625683270,3.3,189.07,189.01,2.6491]
[1735625683570,2.6485,189.06,189.01,2.6491]
[1735625683771,3.3,189.07,189.01,2.6491]
[1735625684771,5.9484,189.07,189.01,2.6491]
[1735625684973,3.3,189.07,189.02,2.6489]
[1735625685571,3.3,189.07,188.99,4.7893]
[1735625685773,3.3,189.07,189.03,2.6488]
[1735625686368,3.3,189.07,189.01,2.649]
[1735625686573,3.3,189.07,188.99,4.7893]
[1735625687271,3.3,189.07,189.02,2.6489]
[1735625687467,3.3,189.07,188.99,4.7893]
[1735625687974,3.3,189.07,189.02,2.6489]
[1735625690069,3.3,189.07,188.99,4.7893]
[1735625690275,3.3,189.07,188.97,12.06178935]
[1735625691476,2.6488,189.04,188.99,2.6494]
[1735625692176,3.3,189.07,188.97,12.06178935]
[1735625692576,12.06178935,189.09,188.97,12.06178935]
[1735625692778,2.6485,189.06,189.01,2.6491]
[1735625695885,3.26,189.08,188.95,3.32]
[1735625696279,3.26,189.08,188.94,12.06178935]
[1735625696481,2.6493,189.0,188.95,2.65]
[1735625696684,3.26,189.03,188.92,4.6013]
[1735625697185,2.6494,188.99,188.94,2.65]
[1735625697686,3.26,189.03,188.92,4.6013]
[1735625698576,2.6493,189.0,188.95,2.65]
[1735625699586,3.26,189.03,188.92,4.6013]
[1735625699786,2.6491,189.02,188.92,4.6013]
[1735625700380,3.26,189.06,188.94,12.06178935]
[1735625701888,12.06178935,189.04,188.92,4.6013]
[1735625702089,4.799,189.03,188.92,4.6013]
[1735625703491,2.6495,188.99,188.93,2.6502]
[1735625706196,2.6495,188.99,188.92,4.6013]
[1735625706495,12.06178935,189.04,188.92,4.6013]
[1735625706694,3.28,189.06,188.92,16.66308935]
[1735625706895,3.28,189.07,189.0,2.6493]
[1735625707098,3.28,189.07,188.95,12.06178935]
[1735625707592,3.28,189.07,188.98,12.06178935]
[1735625707796,3.28,189.07,188.99,1.474]
[1735625708100,3.28,189.07,189.02,2.649]
[1735625708296,3.28,189.07,188.99,1.474]
[1735625708897,3.28,189.07,188.94,19.35862072]
[1735625709094,2.6489,189.04,188.98,2.6496]
[1735625709499,3.28,189.07,188.98,2.6496]
[1735625709899,2.6492,189.01,188.96,2.6497]
[1735625710095,12.06178935,189.05,188.94,13.53578935]
[1735625710307,12.06178935,189.02,188.92,3.0411]
[1735625710598,3.26,189.01,188.92,3.0411]
[1735625710994,5.9092,189.01,188.95,2.65]
[1735625711202,2.6492,189.01,188.95,2.65]
[1735625711903,3.26,189.02,188.96,2.6498]
[1735625712097,15.32178935,189.02,188.92,3.0411]
[1735625712589,15.32178935,189.02,188.95,2.65]
[1735625712793,15.32178935,189.02,188.92,3.0411]
[1735625713595,2.6498,188.97,188.92,1.4856]
[1735625713900,3.28,188.97,188.9,2.6507]
[1735625714495,3.28,188.97,188.89,1.6268]
[1735625714909,3.28,188.97,188.88,2.6508]
[1735625715600,2.6502,188.94,188.88,2.6508]
[1735625715897,3.28,188.97,188.85,1.4802]
[1735625716097,2.6504,188.92,188.86,2.6511]
[1735625716499,2.6503,188.93,188.87,2.6511]
[1735625717001,12.06178935,188.96,188.87,2.6511]
[1735625717201,2.6506,188.91,188.85,4.1315]
[1735625718700,3.28,188.92,188.82,12.06178935]
[1735625718903,3.28,188.92,188.79,16.57208935]
[1735625719103,2.651,188.88,188.82,2.6517]
[1735625719603,3.28,188.92,188.82,2.6517]
[1735625719800,12.06178935,188.9,188.79,16.57208935]
[1735625720701,2.6511,188.87,188.81,2.6518]
[1735625721502,3.24,188.87,188.79,4.5103]
[1735625721699,2.6513,188.86,188.79,7.1625]
[1735625721907,3.24,188.87,188.79,4.5103]
[1735625723102,2.6514,188.85,188.79,4.5103]
[1735625723713,2.6516,188.84,188.78,2.6524]
[1735625724604,2.6516,188.84,188.75,12.06178935]
[1735625724807,2.6516,188.84,188.78,2.6523]
[1735625726208,2.6517,188.83,188.78,2.6523]
[1735625727911,2.6515,188.84,188.79,2.6522]
[1735625728312,15.30178935,188.87,188.74,1.5588]
[1735625729107,2.6518,188.83,188.77,2.6524]
[1735625729710,2.6518,188.83,188.78,2.6524]
[1735625730309,2.6515,188.85,188.78,2.6524]
[1735625730515,15.30178935,188.87,188.78,2.6524]
[1735625731524,2.6516,188.84,188.78,2.6524]
[1735625734428,15.30178935,188.87,188.78,2.6524]
[1735625734626,15.30178935,188.87,188.76,2.6525]
[1735625735121,15.30178935,188.87,188.73,4.6799]
[1735625735618,3.1809,188.9,188.75,12.06178935]
[1735625735821,3.24,188.89,188.75,12.06178935]
[1735625736020,15.24268935,188.9,188.78,12.06178935]
[1735625736220,4.7978,188.91,188.85,2.6513]
[1735625737023,4.7978,188.91,188.78,15.30178935]
[1735625737427,12.06178935,188.9,188.78,15.30178935]
[1735625737628,15.22438935,188.9,188.78,3.24]
[1735625737826,15.22438935,188.9,188.75,12.06178935]
[1735625738330,12.06178935,188.9,188.83,2.6515]
[1735625738623,15.30178935,188.9,188.75,12.06178935]
[1735625738926,15.30178935,188.9,188.79,12.06178935]
[1735625739126,2.651,188.89,188.82,2.6518]
[1735625739329,2.651,188.89,188.79,12.06178935]
[1735625740426,2.651,188.89,188.84,2.6515]
[1735625740639,2.651,188.89,188.79,12.06178935]
[1735625740829,2.6512,188.87,188.79,12.06178935]
[1735625741030,15.30178935,188.9,188.83,2.6517]
[1735625741530,17.95258935,188.9,188.79,12.06178935]
[1735625741735,12.06178935,188.93,188.86,2.6512]
[1735625741931,12.06178935,188.96,188.82,12.06178935]
[1735625742131,5.8901,188.95,188.82,12.06178935]
[1735625742332,3.24,188.95,188.85,12.06178935]
[1735625742931,2.6497,188.97,188.88,2.6509]
[1735625743235,2.6497,188.97,188.85,12.06178935]
[1735625743452,2.6497,188.97,188.91,2.6505]
[1735625743737,2.6499,188.96,188.85,12.06178935]
[1735625744140,4.7926,188.98,188.85,12.06178935]
[1735625744530,4.7926,188.98,188.9,2.6506]
[1735625744733,1.5526,188.98,188.9,2.6506]
[1735625744928,4.7926,188.98,188.9,2.6506]
[1735625745134,3.24,188.97,188.9,2.6506]
[1735625745838,2.6499,188.96,188.85,12.06178935]
[1735625746030,3.24,188.97,188.85,12.06178935]
[1735625746842,3.24,188.97,188.92,2.6504]
[1735625747234,2.6501,188.95,188.89,2.6508]
[1735625747432,3.24,188.97,188.85,12.06178935]
[1735625747636,3.24,188.97,188.88,12.06178935]
[1735625747934,3.24,188.97,188.89,4.6204]
[1735625749341,1.4851,189.01,188.89,4.6204]
[1735625749342,3.24,189.01,188.91,12.06178935]
[1735625750032,2.6495,188.99,188.94,2.65]
[1735625750339,3.24,189.01,188.91,12.06178935]
[1735625750745,3.24,189.01,188.89,4.6204]
[1735625750935,12.06178935,189.0,188.89,4.6204]
[1735625751742,2.65,188.96,188.91,2.6505]
[1735625752238,3.2,188.96,188.85,12.06178935]
[1735625752443,2.6506,188.91,188.86,2.6511]
[1735625752633,2.6506,188.91,188.85,12.06178935]
[1735625752833,3.2,188.96,188.85,12.06178935]
[1735625753034,2.6504,188.92,188.87,2.6511]
[1735625755137,12.06178935,188.94,188.83,2.6515]
[1735625755944,12.06178935,188.94,188.82,12.06178935]
[1735625756143,12.06178935,188.94,188.84,2.6515]
[1735625756339,12.06178935,188.94,188.82,12.06178935]
[1735625756541,2.651,188.89,188.82,12.06178935]
[1735625756940,3.2,188.9,188.84,2.6515]
[1735625757142,5.8507,188.9,188.84,2.6515]
[1735625758241,3.2,188.9,188.79,15.26178935]
[1735625758447,3.2,188.9,188.79,12.06178935]
[1735625759140,3.2,188.9,188.78,4.606]
[1735625759346,7.82,188.9,188.78,4.606]
[1735625760447,2.6511,188.87,188.81,2.6518]
[1735625760848,7.82,188.9,188.78,4.606]
[1735625761147,10.4707,188.9,188.84,2.6515]
[1735625761340,10.4707,188.9,188.79,12.06178935]
[1735625761545,7.82,188.9,188.79,12.06178935]
[1735625762949,2.651,188.88,188.83,2.6517]
[1735625763350,7.82,188.9,188.79,12.06178935]
[1735625764457,2.6513,188.86,188.81,2.6519]
[1735625764753,7.82,188.9,188.81,2.6519]
[1735625764954,7.82,188.9,188.79,12.06178935]
[1735625764955,2.6511,188.87,188.82,2.6518]
[1735625765454,2.6511,188.87,188.79,12.06178935]
[1735625765651,2.6517,188.83,188.78,7.2582]
[1735625766150,2.6517,188.83,188.76,12.06178935]
[1735625766151,3.2,188.85,188.76,12.06178935]
[1735625766350,2.6519,188.82,188.76,12.06178935]
[1735625767155,2.6519,188.82,188.77,2.6524]
[1735625767556,2.6517,188.83,188.76,12.06178935]
[1735625768051,3.2,188.85,188.73,3.2]
[1735625768258,15.26178935,188.85,188.73,12.06178935]
[1735625768460,15.26178935,188.85,188.72,4.7344]
[1735625768854,15.26178935,188.85,188.73,2.653]
[1735625769058,12.06178935,188.82,188.68,41.24911485]
[1735625769259,12.06178935,188.79,188.68,41.24911485]
[1735625769457,12.06178935,188.79,188.7,2.6535]
[1735625769458,2.6528,188.75,188.7,2.6535]
[1735625769657,3.2,188.78,188.68,12.06178935]
[1735625770658,3.2,188.78,188.71,2.6534]
[1735625771359,2.6525,188.77,188.71,2.6534]
[1735625771757,2.6525,188.77,188.68,12.06178935]
[1735625771961,5.8524,188.78,188.72,2.6532]
[1735625774854,5.8524,188.78,188.68,12.06178935]
[1735625774855,3.2,188.78,188.68,12.06178935]
[1735625775065,15.26178935,188.79,188.68,12.06178935]
[1735625775459,15.26178935,188.79,188.74,2.6529]
[1735625779663,17.91418935,188.79,188.72,2.6531]
[1735625779862,15.26178935,188.79,188.72,2.6531]
[1735625780164,2.6525,188.78,188.72,2.6531]
[1735625780363,10.42840364,188.78,188.72,2.6531]
[1735625781868,10.42840364,188.78,188.7,7.77590364]
[1735625782063,10.42840364,188.78,188.73,2.6531]
[1735625782463,2.6525,188.77,188.72,2.6532]
[1735625782663,7.77590364,188.76,188.7,7.77590364]
[1735625782866,7.77590364,188.76,188.68,7.77590364]
[1735625783165,10.42860364,188.76,188.7,2.6534]
[1735625783766,10.42860364,188.76,188.68,7.77590364]
[1735625783968,7.77590364,188.78,188.7,7.77590364]
[1735625785164,4.7915,188.81,188.7,7.77590364]
[1735625785366,7.77590364,188.79,188.72,7.77590364]
[1735625785668,7.77590364,188.79,188.74,2.6529]
[1735625786169,10.42820364,188.79,188.74,2.6529]
[1735625786462,7.77590364,188.77,188.72,2.6532]
[1735625787261,2.6524,188.79,188.73,2.653]
[1735625787470,10.42830364,188.79,188.7,7.77590364]
[1735625787771,13.58830364,188.79,188.7,7.77590364]
[1735625787972,13.58830364,188.79,188.74,2.6529]
[1735625788168,7.77590364,188.77,188.65,6.2355]
[1735625788368,7.77590364,188.77,188.68,7.77590364]
[1735625788567,7.77590364,188.75,188.68,7.77590364]
[1735625788974,2.653,188.74,188.71,2.6534]
[1735625789566,2.653,188.74,188.69,2.6536]
[1735625790068,2.653,188.74,188.68,7.77590364]
[1735625790262,7.77590364,188.75,188.68,7.77590364]
[1735625791166,7.77590364,188.75,188.71,2.6533]
[1735625791473,2.653,188.74,188.68,7.77590364]
[1735625791971,10.42870364,188.75,188.68,7.77590364]
[1735625792172,7.77590364,188.75,188.68,7.77590364]
[1735625793173,7.77590364,188.77,188.72,2.6531]
[1735625793373,10.93590364,188.79,188.7,7.77590364]
[1735625793568,10.93590364,188.79,188.65,6.1955]
[1735625793569,3.16,188.79,188.72,7.77590364]
[1735625793773,7.77590364,188.79,188.72,7.77590364]
[1735625794067,12.49970364,188.81,188.72,7.77590364]
[1735625794271,15.15170364,188.81,188.77,2.6524]
[1735625794468,13.58790364,188.81,188.77,2.6524]
[1735625794978,10.42790364,188.81,188.77,2.6524]
[1735625795172,7.77590364,188.81,188.77,2.6524]
[1735625797576,7.77590364,188.81,188.74,7.77590364]
[1735625798279,10.93590364,188.81,188.77,2.6525]
[1735625798476,10.93590364,188.81,188.74,7.77590364]
[1735625799478,10.93590364,188.81,188.78,2.6522]
[1735625799877,13.58800364,188.81,188.72,3.0478]
[1735625800078,7.77590364,188.79,188.73,10.42880364]
[1735625800273,7.77590364,188.79,188.71,16.62323501]
[1735625800477,3.16,188.81,188.71,7.29683137]
[1735625800478,2.6527,188.76,188.71,7.29683137]
[1735625800680,2.6527,188.76,188.72,2.6532]
[1735625801577,2.6527,188.76,188.71,2.6533]
[1735625802078,2.6527,188.76,188.69,7.77590364]
[1735625802481,7.77590364,188.77,188.73,2.6531]
[1735625805675,7.77590364,188.77,188.71,7.77590364]
[1735625805982,58.70466436,188.89,188.67,35.5050255]
[1735625805983,10.93590364,188.81,188.73,7.77590364]
[1735625806377,13.58790364,188.81,188.76,2.6526]
[1735625806677,7.77590364,188.79,188.71,7.77590364]
[1735625806979,10.42850364,188.77,188.72,2.6532]
[1735625808479,2.6526,188.77,188.72,2.6532]
[1735625808783,7.77590364,188.78,188.74,2.6529]
[1735625809076,3.16,188.81,188.73,7.77590364]
[1735625809275,10.93590364,188.81,188.77,2.6525]
[1735625809983,10.93590364,188.81,188.73,7.77590364]
[1735625810182,10.93590364,188.81,188.76,2.6526]
[1735625811488,13.58790364,188.81,188.76,2.6526]
[1735625811680,10.42790364,188.81,188.76,2.6526]
[1735625811885,10.42790364,188.81,188.73,7.77590364]
[1735625811886,7.77590364,188.81,188.77,2.6524]
[1735625812586,7.77590364,188.81,188.76,2.6526]
[1735625812781,7.77590364,188.81,188.73,7.77590364]
[1735625812983,2.6522,188.8,188.73,7.77590364]
[1735625813484,2.6522,188.8,188.74,2.6528]
[1735625813880,2.6522,188.8,188.73,7.77590364]
[1735625814097,2.652,188.81,188.75,7.77590364]
[1735625814277,10.89590364,188.83,188.75,7.77590364]
[1735625814787,10.42790364,188.81,188.77,2.6524]
[1735625816382,7.77590364,188.81,188.77,2.6524]
[1735625817285,7.77590364,188.81,188.78,2.6524]
[1735625818185,2.6517,188.83,188.75,7.77590364]
[1735625818382,10.42760364,188.83,188.75,7.77590364]
[1735625819588,10.42760364,188.83,188.78,2.6524]
[1735625819888,2.6519,188.82,188.75,7.77590364]
[1735625820491,7.77590364,188.83,188.75,7.77590364]
[1735625821190,7.77590364,188.81,188.76,2.6525]
[1735625821387,7.77590364,188.81,188.73,9.33930364]
[1735625821589,2.6522,188.8,188.75,2.6527]
[1735625822088,7.77590364,188.81,188.73,9.33930364]
[1735625822786,2.6523,188.79,188.74,2.6529]
[1735625823890,7.77590364,188.81,188.73,9.33930364]
[1735625824193,2.6521,188.8,188.75,2.6527]
[1735625824891,7.77590364,188.81,188.73,9.33930364]
[1735625825093,10.42790364,188.81,188.76,2.6525]
[1735625825690,7.77590364,188.81,188.73,9.33930364]
[1735625825890,61.03646649,188.92,188.77,7.77590364]
[1735625826087,7.77590364,188.86,188.82,2.6518]
[1735625826295,7.77590364,188.86,188.79,7.77590364]
[1735625826691,7.77590364,188.86,188.81,2.6519]
[1735625827093,7.77590364,188.86,188.79,7.77590364]
[1735625827291,7.77590364,188.88,188.81,7.77590364]
[1735625827492,7.77590364,188.91,188.83,7.77590364]
[1735625828495,10.42650364,188.91,188.86,2.6511]
[1735625828797,7.77590364,188.89,188.83,7.77590364]
[1735625828992,7.77590364,188.89,188.81,10.89590364]
[1735625829193,7.77590364,188.89,188.84,2.6515]
[1735625829795,7.77590364,188.89,188.81,10.89590364]
[1735625829796,7.77590364,188.89,188.83,7.77590364]
[1735625830001,7.77590364,188.89,188.85,2.6514]
[1735625830196,2.6508,188.9,188.85,2.6514]
[1735625830396,10.42670364,188.9,188.85,2.6514]
[1735625830697,2.6508,188.9,188.85,2.6514]
[1735625830899,10.42670364,188.9,188.85,2.6514]
[1735625831095,7.77590364,188.9,188.86,2.6512]
[1735625833803,2.6506,188.91,188.86,2.6512]
[1735625834395,7.77590364,188.91,188.83,7.77590364]
[1735625834598,4.7522,188.93,188.85,7.77590364]
[1735625834798,12.52810364,188.93,188.85,7.77590364]
[1735625835099,12.52810364,188.93,188.89,2.6507]
[1735625835499,12.52810364,188.93,188.85,7.77590364]
[1735625835698,12.52810364,188.93,188.87,2.651]
[1735625836504,2.6504,188.92,188.87,2.651]
[1735625836804,12.52810364,188.93,188.87,2.651]
[1735625837606,18.29840364,188.93,188.88,2.651]
[1735625838098,15.64810364,188.93,188.85,7.77590364]
[1735625838303,15.64810364,188.93,188.89,2.6507]
[1735625838504,15.64810364,188.93,188.85,7.77590364]
[1735625839014,7.77590364,188.93,188.85,7.77590364]
[1735625839199,21.31615,189.02,188.83,3.12]
[1735625839200,2.6498,188.97,188.83,3.12]
[1735625839505,7.77590364,188.97,188.91,7.77590364]
[1735625839702,7.77590364,188.97,188.94,2.65]
[1735625840103,7.77590364,188.99,188.91,7.77590364]
[1735625840704,4.6265,189.01,188.93,7.77590364]
[1735625840905,12.40240364,189.01,188.95,2.6499]
[1735625841407,10.42540364,188.99,188.94,2.6501]
[1735625841607,10.42540364,188.99,188.91,7.77590364]
[1735625841908,2.6495,188.99,188.91,7.77590364]
[1735625842109,10.42520364,189.0,188.94,2.65]
[1735625842705,7.77590364,189.0,188.96,2.6498]
[1735625843511,7.77590364,189.0,188.93,7.77590364]
[1735625843807,10.42520364,189.0,188.95,2.65]
[1735625844008,7.77590364,189.0,188.92,7.77590364]
[1735625844905,2.6495,188.99,188.92,7.77590364]
[1735625845308,7.77590364,189.0,188.96,2.6498]
[1735625846205,29.09205364,189.02,188.94,7.77590364]
[1735625846405,29.09205364,189.02,188.89,4.7033]
[1735625846406,21.31615,189.02,188.98,7.77590364]
[1735625847609,21.31615,189.02,189.0,2.6492]
[1735625848713,21.31615,189.02,189.0,10.42510364]
[1735625850318,21.31615,189.02,189.01,2.6491]
[1735625852115,21.31615,189.02,189.0,7.77590364]
[1735625852315,21.31615,189.02,188.98,10.87590364]
[1735625852928,21.31615,189.02,189.0,7.77590364]
[1735625853646,21.31615,189.02,189.01,2.6491]
[1735625854048,9.69215,189.02,189.01,2.6491]
[1735625854829,9.69215,189.02,189.01,10.42500364]
[1735625855221,3.1,189.11,189.04,2.6486]
[1735625855222,2.6481,189.09,189.04,2.6486]
[1735625855718,4.6297,189.17,189.04,7.77590364]
[1735625855922,7.77590364,189.14,189.06,7.77590364]
[1735625856420,2.6474,189.14,189.08,7.77590364]
[1735625857521,2.6474,189.14,189.09,2.648]
[1735625857718,7.2766,189.17,189.1,7.77590364]
[1735625857922,10.87590364,189.19,189.1,7.77590364]
[1735625858121,13.54024636,189.12,189.1,2.6479]
[1735625858318,13.54024636,189.12,189.11,7.77590364]
[1735625858714,13.54024636,189.12,189.11,10.42360364]
[1735625859625,13.54024636,189.12,189.11,7.77590364]
[1735625859826,13.54024636,189.12,189.09,13.52380364]
[1735625860618,13.54024636,189.12,189.09,5.7479]
[1735625861122,13.54024636,189.12,189.09,3.1]
[1735625861522,7.77590364,189.11,189.02,3.1]
[1735625861723,7.77590364,189.11,189.03,7.77590364]
[1735625861925,2.6483,189.08,189.03,2.6488]
[1735625862124,13.54024636,189.12,188.99,4.5775]
[1735625862125,7.77590364,189.09,188.99,7.6775]
[1735625862324,7.77590364,189.09,189.01,7.77590364]
[1735625862629,7.77590364,189.07,188.99,3.1]
[1735625862828,7.77590364,189.05,188.99,7.77590364]
[1735625863425,10.42460364,189.05,188.99,7.77590364]
[1735625863629,7.77590364,189.06,188.99,7.77590364]
[1735625864236,12.11444164,189.09,188.96,12.11444164]
[1735625864422,2.6485,189.06,189.0,2.6492]
[1735625865332,2.6485,189.06,188.96,12.11444164]
[1735625865529,12.11444164,189.09,188.98,2.6496]
[1735625866234,2.6487,189.05,188.98,2.6496]
[1735625866435,2.6487,189.05,188.99,2.6494]
[1735625867334,12.11444164,189.09,188.96,12.11444164]
[1735625867535,3.1,189.1,188.92,4.7334]
[1735625867536,12.11444164,189.06,188.97,2.6496]
[1735625867836,7.8553,189.05,188.93,15.21444164]
[1735625868531,2.6489,189.04,188.97,2.6497]
[1735625868732,7.8553,189.05,188.97,2.6497]
[1735625869930,7.8553,189.05,188.95,2.6499]
[1735625870136,12.11444164,189.03,188.92,4.7334]
[1735625870838,12.11444164,189.03,188.92,2.6503]
[1735625871234,2.6493,189.0,188.9,12.11444164]
[1735625872236,3.1,189.0,188.9,12.11444164]
[1735625873529,2.6497,188.97,188.91,2.6505]
[1735625874235,3.1,189.02,188.9,12.11444164]
[1735625874434,3.1,189.02,188.93,12.11444164]
[1735625875937,5.7491,189.02,188.96,2.6498]
[1735625876134,5.7491,189.02,188.93,12.11444164]
[1735625876135,3.1,189.02,188.9,12.11444164]
[1735625876539,2.6494,189.0,188.95,2.65]
[1735625876935,2.6494,189.0,188.9,12.11444164]
[1735625877136,3.1,189.02,188.9,12.11444164]
[1735625877441,3.1,189.02,188.93,12.11444164]
[1735625877638,3.1,189.04,188.93,12.11444164]
[1735625878432,2.649,189.03,188.97,2.6496]
[1735625878936,4.7553,189.05,188.97,2.6496]
[1735625879137,4.7553,189.05,188.99,2.6494]
[1735625879331,7.8553,189.05,188.99,2.6494]
[1735625880341,4.7553,189.05,188.96,12.11444164]
[1735625880939,7.404,189.05,189.0,2.6492]
[1735625881143,4.7553,189.05,188.96,12.11444164]
[1735625881443,4.7553,189.05,189.02,2.649]
[1735625881644,3.1,189.07,189.02,2.649]
[1735625881944,3.1,189.09,188.99,12.11444164]
[1735625882141,2.6482,189.08,189.03,2.6488]
[1735625882333,12.11444164,189.12,188.99,15.21444164]
[1735625882539,4.6543,189.14,189.02,12.11444164]
[1735625884245,2.6476,189.13,189.02,12.11444164]
[1735625885341,4.56344,189.15,189.05,12.11444164]
[1735625885541,1.91624,189.15,189.05,15.21444164]
[1735625886449,2.6474,189.14,189.08,2.6482]
[1735625886643,1.91624,189.15,189.05,15.21444164]
[1735625886843,1.91624,189.15,189.05,12.11444164]
[1735625887039,3.0268,189.14,189.03,3.1]
[1735625887240,16.65734164,189.14,189.03,3.1]
[1735625887437,16.65734164,189.14,189.02,12.11444164]
[1735625888347,4.5429,189.14,189.02,12.11444164]
[1735625889145,2.6482,189.08,189.02,12.11444164]
[1735625889840,3.1,189.11,189.02,12.11444164]
[1735625890151,4.5429,189.14,189.05,12.11444164]
[1735625890349,3.0268,189.14,189.09,2.648]
[1735625891647,5.01624,189.15,189.1,2.6478]
[1735625891848,1.91624,189.15,189.08,12.11444164]
[1735625892453,1.91624,189.15,189.11,2.6476]
[1735625892854,1.91624,189.15,189.08,12.11444164]
[1735625893154,4.56344,189.15,189.08,12.11444164]
[1735625894448,1.91624,189.15,189.11,2.6477]
[1735625894644,1.91624,189.15,189.08,12.11444164]
[1735625895853,1.91624,189.15,189.1,2.6479]
[1735625896746,1.91624,189.15,189.09,2.648]
[1735625896950,1.91624,189.15,189.08,12.11444164]
[1735625897550,2.6475,189.13,189.09,2.648]
[1735625897754,1.91624,189.15,189.08,12.11444164]
[1735625897949,1.91624,189.15,189.05,12.11444164]
[1735625898156,2.648,189.1,189.05,14.76294164]
[1735625898354,1.91624,189.15,189.03,7.7844]
[1735625898554,1.91624,189.15,189.05,12.11444164]
[1735625898746,1.91624,189.15,189.06,2.6484]
[1735625899355,2.6477,189.12,189.06,2.6484]
[1735625899853,2.6478,189.11,189.05,12.11444164]
[1735625900062,2.6478,189.11,189.06,2.6484]
[1735625900761,1.91624,189.15,189.03,7.7844]
[1735625900960,1.91624,189.15,189.05,2.6486]
[1735625901657,2.6479,189.11,189.05,2.6486]
[1735625902056,3.1,189.12,189.02,2.6489]
[1735625902261,2.6478,189.11,189.05,7.74835956]
[1735625902454,10.84835956,189.12,189.05,7.74835956]
[1735625903461,13.49595956,189.12,189.07,2.6483]
[1735625904366,3.1,189.12,189.08,2.6481]
[1735625904560,1.91624,189.15,189.11,7.74835956]
[1735625904962,1.91624,189.15,189.11,10.39595956]
[1735625905273,1.91624,189.15,189.11,7.74835956]
[1735625905568,1.91624,189.15,189.13,7.74835956]
[1735625905959,1.91624,189.15,189.13,10.39575956]
[1735625906265,1.91624,189.15,189.13,2.6474]
[1735625906969,1.91624,189.15,189.1,12.09746729]
[1735625907965,1.91624,189.15,189.12,2.6476]
[1735625908869,2.6459,189.25,189.13,12.09746729]
[1735625909063,3.0487,189.3,189.19,12.09746729]
[1735625909261,12.91165336,189.29,189.16,12.09746729]
[1735625909471,0.81418607,189.28,189.16,14.74436729]
[1735625909869,0.81418607,189.28,189.16,12.09746729]
[1735625910071,2.6462,189.23,189.17,2.6469]
[1735625911468,12.09746729,189.26,189.15,3.1494]
[1735625912072,2.6464,189.21,189.16,2.647]
[1735625912267,2.6464,189.21,189.15,3.1494]
[1735625912576,3.1,189.23,189.15,1.6198]
[1735625913171,12.09746729,189.26,189.15,1.6198]
[1735625913470,8.06494,189.3,189.19,12.09746729]
[1735625913973,2.646,189.24,189.19,12.09746729]
[1735625915275,2.646,189.24,189.18,2.6466]
[1735625916565,2.646,189.24,189.19,2.6465]
[1735625917572,2.6461,189.23,189.19,2.6465]
[1735625918276,2.6459,189.24,189.19,2.6465]
[1735625918477,1.6136,189.28,189.19,2.6465]
[1735625918877,2.6457,189.26,189.19,2.6465]
[1735625919078,1.6136,189.28,189.16,15.19746729]
[1735625919278,1.6136,189.28,189.17,2.6468]
[1735625920174,2.6462,189.23,189.17,2.6468]
[1735625920581,3.1,189.25,189.17,2.6468]
[1735625920771,3.1,189.25,189.16,15.19746729]
[1735625921372,5.7458,189.25,189.19,2.6466]
[1735625921581,3.1,189.25,189.19,2.6466]
[1735625922580,2.646,189.24,189.19,2.6466]
[1735625923280,2.6462,189.22,189.17,2.6469]
[1735625923883,3.1,189.25,189.16,12.09746729]
[1735625924081,12.09746729,189.24,189.11,1.5936]
[1735625924478,0.8150851,189.23,189.1,6.2016]
[1735625924675,0.8150851,189.23,189.1,3.1016]
[1735625924979,2.6469,189.17,189.12,2.6476]
[1735625925387,2.6469,189.17,189.1,3.1016]
[1735625925582,2.6469,189.17,189.12,2.6476]
[1735625926879,2.6471,189.16,189.11,2.6477]
[1735625927886,3.1,189.19,189.11,2.6477]
[1735625928086,2.6472,189.15,189.11,2.6477]
[1735625928687,3.1,189.19,189.09,12.09746729]
[1735625928885,2.6474,189.14,189.09,14.74536729]
[1735625929486,2.6475,189.13,189.09,14.74536729]
[1735625929793,2.6475,189.13,189.09,2.6479]